[Event "Early-Titled-Tuesday-Blitz-October-24-2023"]
[Site "Chess.com"]
[Date "2023.10.24"]
[Round "9"]
[White "ilushka"]
[Black "GeorgiosSouleidis"]
[Result "1/2-1/2"]
[WhiteElo "2466"]
[BlackElo "2605"]
[TimeControl "180+1"]
[EndTime "9:44:14 PDT"]
[Termination "Game drawn by repetition"]

1. e4 {[%clk 0:03:00.9]} 1... c5 {[%clk 0:02:59.9]} 2. Nf3 {[%clk 0:03:00.2]}
2... e6 {[%clk 0:03:00.2]} 3. c4 {[%clk 0:02:59.7]} 3... Nc6 {[%clk 0:03:00]} 4.
d4 {[%clk 0:02:59.1]} 4... cxd4 {[%clk 0:02:59.6]} 5. Nxd4 {[%clk 0:03:00]} 5...
Qb6 {[%clk 0:02:58.1]} 6. Nb3 {[%clk 0:02:53.8]} 6... Nf6 {[%clk 0:02:56.1]} 7.
Be3 {[%clk 0:02:50.1]} 7... Qc7 {[%clk 0:02:53.3]} 8. N1d2 {[%clk 0:02:41.8]}
8... d6 {[%clk 0:02:46.8]} 9. Be2 {[%clk 0:02:40.7]} 9... Be7 {[%clk 0:02:47.4]}
10. O-O {[%clk 0:02:40.5]} 10... O-O {[%clk 0:02:48]} 11. Rc1 {[%clk 0:02:40]}
11... b6 {[%clk 0:02:47.8]} 12. f3 {[%clk 0:02:32.9]} 12... Bb7 {[%clk
0:02:47.4]} 13. Nb1 {[%clk 0:02:32.9]} 13... Rac8 {[%clk 0:02:39]} 14. Nc3
{[%clk 0:02:32.8]} 14... Qb8 {[%clk 0:02:38.1]} 15. Qd2 {[%clk 0:02:16.6]} 15...
Rfd8 {[%clk 0:02:37.8]} 16. Rfd1 {[%clk 0:02:13.3]} 16... Ne5 {[%clk 0:02:30.8]}
17. Nb5 {[%clk 0:01:58.6]} 17... d5 {[%clk 0:02:19]} 18. cxd5 {[%clk 0:01:58.6]}
18... Rxc1 {[%clk 0:02:18.1]} 19. Qxc1 {[%clk 0:01:57.9]} 19... exd5 {[%clk
0:02:18.2]} 20. Bf4 {[%clk 0:01:14]} 20... a6 {[%clk 0:01:41]} 21. Qc3 {[%clk
0:01:00.5]} 21... Nxf3+ {[%clk 0:01:35.3]} 22. Qxf3 {[%clk 0:00:57.4]} 22...
dxe4 {[%clk 0:01:24.4]} 23. Qf1 {[%clk 0:00:39.3]} 23... Qc8 {[%clk 0:01:13.6]}
24. Nd6 {[%clk 0:00:18.7]} 24... Bxd6 {[%clk 0:01:03.4]} 25. Rxd6 {[%clk
0:00:19.6]} 25... a5 {[%clk 0:00:56.7]} 26. Rxd8+ {[%clk 0:00:19.2]} 26... Qxd8
{[%clk 0:00:57]} 27. Qd1 {[%clk 0:00:19.1]} 27... Qe8 {[%clk 0:00:52.3]} 28. Nd4
{[%clk 0:00:17.9]} 28... Nd5 {[%clk 0:00:50.2]} 29. Bg3 {[%clk 0:00:16.9]} 29...
h6 {[%clk 0:00:45.5]} 30. Nf5 {[%clk 0:00:16.8]} 30... Qe6 {[%clk 0:00:43.8]}
31. Nd6 {[%clk 0:00:15.5]} 31... Bc6 {[%clk 0:00:42.3]} 32. Bc4 {[%clk
0:00:14.4]} 32... e3 {[%clk 0:00:41.2]} 33. Qd3 {[%clk 0:00:08.6]} 33... h5
{[%clk 0:00:35.4]} 34. Nf5 {[%clk 0:00:08.7]} 34... e2 {[%clk 0:00:19.9]} 35.
Nd4 {[%clk 0:00:05.8]} 35... e1=Q+ {[%clk 0:00:19.6]} 36. Bxe1 {[%clk
0:00:05.5]} 36... Qxe1+ {[%clk 0:00:20.5]} 37. Qf1 {[%clk 0:00:05.6]} 37...
Qxf1+ {[%clk 0:00:20.7]} 38. Bxf1 {[%clk 0:00:04.4]} 38... Bd7 {[%clk
0:00:20.2]} 39. Be2 {[%clk 0:00:04.2]} 39... g6 {[%clk 0:00:19.7]} 40. Bf3
{[%clk 0:00:03.9]} 40... Nb4 {[%clk 0:00:17.3]} 41. a3 {[%clk 0:00:02.2]} 41...
Nd3 {[%clk 0:00:17.8]} 42. b3 {[%clk 0:00:02.5]} 42... Kf8 {[%clk 0:00:15.5]}
43. Be4 {[%clk 0:00:01.7]} 43... Nc5 {[%clk 0:00:15.5]} 44. Bc2 {[%clk
0:00:02.3]} 44... Ke7 {[%clk 0:00:14]} 45. Kf2 {[%clk 0:00:02.9]} 45... Kd6
{[%clk 0:00:14.2]} 46. Ke3 {[%clk 0:00:03.6]} 46... Ne6 {[%clk 0:00:13.9]} 47.
Nf3 {[%clk 0:00:03]} 47... Bc6 {[%clk 0:00:12.4]} 48. Ne1 {[%clk 0:00:02.7]}
48... Ke5 {[%clk 0:00:12.2]} 49. g3 {[%clk 0:00:03.2]} 49... b5 {[%clk
0:00:11.2]} 50. Nd3+ {[%clk 0:00:03.5]} 50... Kd6 {[%clk 0:00:11.6]} 51. Nf2
{[%clk 0:00:02.8]} 51... b4 {[%clk 0:00:11]} 52. axb4 {[%clk 0:00:02.9]} 52...
axb4 {[%clk 0:00:11.9]} 53. Nd3 {[%clk 0:00:03.3]} 53... Nc5 {[%clk 0:00:03.5]}
54. Nxb4 {[%clk 0:00:03.7]} 54... Bd7 {[%clk 0:00:04]} 55. Nd3 {[%clk
0:00:03.6]} 55... Be6 {[%clk 0:00:03.4]} 56. Nxc5 {[%clk 0:00:01.8]} 56... Kxc5
{[%clk 0:00:04.3]} 57. Ke4 {[%clk 0:00:01.9]} 57... f6 {[%clk 0:00:03.7]} 58.
Kf4 {[%clk 0:00:01.7]} 58... g5+ {[%clk 0:00:03.6]} 59. Ke3 {[%clk 0:00:02]}
59... h4 {[%clk 0:00:01.7]} 60. gxh4 {[%clk 0:00:01.9]} 60... gxh4 {[%clk
0:00:02.6]} 61. Kf4 {[%clk 0:00:02.2]} 61... Kb4 {[%clk 0:00:03.3]} 62. Bd1
{[%clk 0:00:02]} 62... Bxb3 {[%clk 0:00:03.7]} 63. Bxb3 {[%clk 0:00:01.5]} 63...
Kxb3 {[%clk 0:00:04.6]} 64. Kg4 {[%clk 0:00:02]} 64... Kc4 {[%clk 0:00:05.4]}
65. Kxh4 {[%clk 0:00:02.5]} 65... Kd4 {[%clk 0:00:04.9]} 66. Kg4 {[%clk
0:00:01.6]} 66... Ke4 {[%clk 0:00:05.3]} 67. h4 {[%clk 0:00:02.2]} 67... f5+
{[%clk 0:00:06.2]} 68. Kg3 {[%clk 0:00:01.1]} 68... Ke3 {[%clk 0:00:06.7]} 69.
Kg2 {[%clk 0:00:01.5]} 69... Ke2 {[%clk 0:00:06.8]} 70. Kg3 {[%clk 0:00:01.8]}
70... Ke3 {[%clk 0:00:07.2]} 71. Kg2 {[%clk 0:00:02.5]} 71... f4 {[%clk
0:00:07.6]} 72. h5 {[%clk 0:00:01.9]} 72... Ke2 {[%clk 0:00:07.8]} 73. h6 {[%clk
0:00:01.5]} 73... f3+ {[%clk 0:00:08.7]} 74. Kg3 {[%clk 0:00:01.2]} 74... f2
{[%clk 0:00:09.6]} 75. h7 {[%clk 0:00:01.8]} 75... f1=Q {[%clk 0:00:10.5]} 76.
h8=Q {[%clk 0:00:02.5]} 76... Qg1+ {[%clk 0:00:10.1]} 77. Kf4 {[%clk 0:00:03]}
77... Qe3+ {[%clk 0:00:10.5]} 78. Kg4 {[%clk 0:00:03.2]} 78... Qf3+ {[%clk
0:00:10.8]} 79. Kg5 {[%clk 0:00:02.9]} 79... Qd5+ {[%clk 0:00:10.1]} 80. Kg4
{[%clk 0:00:03.8]} 80... Qf3+ {[%clk 0:00:10]} 81. Kg5 {[%clk 0:00:04]} 81...
Qg3+ {[%clk 0:00:09.9]} 82. Kf5 {[%clk 0:00:04]} 82... Qf3+ {[%clk 0:00:09.6]}
83. Kg5 {[%clk 0:00:04.6]} 1/2-1/2

[Event "Early-Titled-Tuesday-Blitz-October-24-2023"]
[Site "Chess.com"]
[Date "2023.10.24"]
[Round "9"]
[White "wanyaland"]
[Black "NMJeevanK"]
[Result "0-1"]
[WhiteElo "2458"]
[BlackElo "2603"]
[TimeControl "180+1"]
[EndTime "9:44:24 PDT"]
[Termination "NMJeevanK won on time"]

1. d4 {[%clk 0:02:58.9]} 1... Nf6 {[%clk 0:02:57.7]} 2. c4 {[%clk 0:02:58.5]}
2... e6 {[%clk 0:02:52.6]} 3. g3 {[%clk 0:02:56.7]} 3... d5 {[%clk 0:02:46.4]}
4. Bg2 {[%clk 0:02:56]} 4... Bb4+ {[%clk 0:02:45.7]} 5. Bd2 {[%clk 0:02:49]}
5... Bxd2+ {[%clk 0:02:43.7]} 6. Nxd2 {[%clk 0:02:48.4]} 6... O-O {[%clk
0:02:44.6]} 7. Qc2 {[%clk 0:02:47.5]} 7... b6 {[%clk 0:02:43.8]} 8. cxd5 {[%clk
0:02:46.2]} 8... exd5 {[%clk 0:02:43.1]} 9. Ngf3 {[%clk 0:02:44.4]} 9... Nbd7
{[%clk 0:02:40.6]} 10. Ne5 {[%clk 0:02:43.2]} 10... Bb7 {[%clk 0:02:37.5]} 11.
Rd1 {[%clk 0:02:37.5]} 11... c5 {[%clk 0:02:35.6]} 12. Nxd7 {[%clk 0:02:32.1]}
12... Nxd7 {[%clk 0:02:35.6]} 13. dxc5 {[%clk 0:02:29.7]} 13... bxc5 {[%clk
0:02:36.5]} 14. O-O {[%clk 0:02:24.9]} 14... Rc8 {[%clk 0:02:32.9]} 15. Nc4
{[%clk 0:02:22.6]} 15... Nf6 {[%clk 0:02:26.5]} 16. Ne3 {[%clk 0:02:12.4]} 16...
Qd7 {[%clk 0:02:11.5]} 17. Nxd5 {[%clk 0:01:57.6]} 17... Bxd5 {[%clk 0:02:08.1]}
18. e4 {[%clk 0:01:51.2]} 18... Bxe4 {[%clk 0:02:00.6]} 19. Bxe4 {[%clk
0:01:51.1]} 19... Qe7 {[%clk 0:01:52.7]} 20. Bf5 {[%clk 0:01:47.5]} 20... Rcd8
{[%clk 0:01:53]} 21. Rde1 {[%clk 0:01:45.1]} 21... Qc7 {[%clk 0:01:51.4]} 22. b3
{[%clk 0:01:41.6]} 22... g6 {[%clk 0:01:50.4]} 23. Bh3 {[%clk 0:01:40.6]} 23...
Rd5 {[%clk 0:01:48.4]} 24. Bg2 {[%clk 0:01:40.1]} 24... Rd4 {[%clk 0:01:38.8]}
25. Rc1 {[%clk 0:01:39.9]} 25... Rc8 {[%clk 0:01:38]} 26. Rfd1 {[%clk
0:01:34.7]} 26... Qd6 {[%clk 0:01:31]} 27. Rxd4 {[%clk 0:01:29]} 27... Qxd4
{[%clk 0:01:31.9]} 28. h3 {[%clk 0:01:26.7]} 28... h5 {[%clk 0:01:30.4]} 29. Qc4
{[%clk 0:01:24.5]} 29... Qe5 {[%clk 0:01:25]} 30. b4 {[%clk 0:01:21]} 30... Nd7
{[%clk 0:01:25.4]} 31. Qb5 {[%clk 0:01:16.1]} 31... Qb2 {[%clk 0:01:17.9]} 32.
Rd1 {[%clk 0:01:07.8]} 32... Nb6 {[%clk 0:01:13.6]} 33. Qa6 {[%clk 0:00:52.2]}
33... Qxb4 {[%clk 0:01:09.6]} 34. Qxa7 {[%clk 0:00:52.1]} 34... c4 {[%clk
0:01:07.5]} 35. a3 {[%clk 0:00:37.5]} 35... Qb3 {[%clk 0:01:06.2]} 36. Rd6
{[%clk 0:00:36.7]} 36... c3 {[%clk 0:01:01]} 37. Rxb6 {[%clk 0:00:34.8]} 37...
Qxb6 {[%clk 0:00:59.7]} 38. Qxb6 {[%clk 0:00:30.6]} 38... c2 {[%clk 0:01:00]}
39. Qe3 {[%clk 0:00:30.1]} 39... c1=Q+ {[%clk 0:01:00.5]} 40. Qxc1 {[%clk
0:00:30.1]} 40... Rxc1+ {[%clk 0:01:01.4]} 41. Bf1 {[%clk 0:00:29.4]} 41... Ra1
{[%clk 0:01:02.3]} 42. Kg2 {[%clk 0:00:29.4]} 42... Rxa3 {[%clk 0:01:02.2]} 43.
h4 {[%clk 0:00:30.3]} 43... Kg7 {[%clk 0:01:01.1]} 44. Be2 {[%clk 0:00:30.6]}
44... Kf6 {[%clk 0:01:00.5]} 45. Bc4 {[%clk 0:00:31]} 45... Rc3 {[%clk
0:00:59.7]} 46. Ba2 {[%clk 0:00:30.1]} 46... Rc7 {[%clk 0:01:00.6]} 47. Kf3
{[%clk 0:00:29.1]} 47... Ke5 {[%clk 0:01:00.8]} 48. Bb1 {[%clk 0:00:27.5]} 48...
Rb7 {[%clk 0:00:58.1]} 49. Ba2 {[%clk 0:00:25.6]} 49... Ra7 {[%clk 0:00:58.3]}
50. Bc4 {[%clk 0:00:24.3]} 50... f6 {[%clk 0:00:57.4]} 51. Bg8 {[%clk
0:00:21.3]} 51... g5 {[%clk 0:00:55]} 52. hxg5 {[%clk 0:00:21.4]} 52... fxg5
{[%clk 0:00:55.9]} 53. Kg2 {[%clk 0:00:21.5]} 53... Kf5 {[%clk 0:00:47.9]} 54.
Bc4 {[%clk 0:00:20.7]} 54... Rd7 {[%clk 0:00:47.4]} 55. Be2 {[%clk 0:00:19]}
55... g4 {[%clk 0:00:43.4]} 56. Kf1 {[%clk 0:00:17.5]} 56... Kg5 {[%clk
0:00:42.3]} 57. Bc4 {[%clk 0:00:17.1]} 57... h4 {[%clk 0:00:41.8]} 58. gxh4+
{[%clk 0:00:18]} 58... Kxh4 {[%clk 0:00:42.7]} 59. Kg2 {[%clk 0:00:17.9]} 59...
Rd2 {[%clk 0:00:43.3]} 60. Kf1 {[%clk 0:00:17.1]} 60... Kg5 {[%clk 0:00:42.9]}
61. Bb5 {[%clk 0:00:16.3]} 61... Kf4 {[%clk 0:00:43.2]} 62. Ba6 {[%clk
0:00:16.1]} 62... Rb2 {[%clk 0:00:41.2]} 63. Be2 {[%clk 0:00:13.9]} 63... Rb1+
{[%clk 0:00:35.8]} 64. Kg2 {[%clk 0:00:13.7]} 64... Rb2 {[%clk 0:00:36.7]} 65.
Kf1 {[%clk 0:00:13.9]} 65... Ra2 {[%clk 0:00:36.1]} 66. Ke1 {[%clk 0:00:12.9]}
66... Ra1+ {[%clk 0:00:31.3]} 67. Kd2 {[%clk 0:00:12.9]} 67... Rg1 {[%clk
0:00:28.7]} 68. Bd1 {[%clk 0:00:11.3]} 68... Rg2 {[%clk 0:00:28.1]} 69. Ke1
{[%clk 0:00:11.5]} 69... g3 {[%clk 0:00:25.1]} 70. fxg3+ {[%clk 0:00:12.4]}
70... Ke3 {[%clk 0:00:25.2]} 71. Kf1 {[%clk 0:00:10.7]} 71... Rxg3 {[%clk
0:00:25.5]} 72. Ba4 {[%clk 0:00:08.9]} 72... Rg4 {[%clk 0:00:22.7]} 73. Bc6
{[%clk 0:00:07.2]} 73... Rc4 {[%clk 0:00:21.9]} 74. Bd7 {[%clk 0:00:05.5]} 74...
Kf3 {[%clk 0:00:19.2]} 75. Ke1 {[%clk 0:00:05.5]} 75... Re4+ {[%clk 0:00:17.3]}
76. Kf1 {[%clk 0:00:04.9]} 76... Rd4 {[%clk 0:00:18]} 77. Bc6+ {[%clk
0:00:03.8]} 77... Ke3 {[%clk 0:00:18]} 78. Kg2 {[%clk 0:00:04.1]} 78... Rg4+
{[%clk 0:00:17.2]} 79. Kf1 {[%clk 0:00:03.1]} 79... Rg6 {[%clk 0:00:18.1]} 80.
Bb5 {[%clk 0:00:02.6]} 80... Rf6+ {[%clk 0:00:18.3]} 81. Ke1 {[%clk 0:00:02.5]}
81... Rf5 {[%clk 0:00:19.2]} 82. Bc4 {[%clk 0:00:01.3]} 82... Rg5 {[%clk
0:00:20.1]} 0-1

[Event "Early-Titled-Tuesday-Blitz-October-24-2023"]
[Site "Chess.com"]
[Date "2023.10.24"]
[Round "9"]
[White "viktorgen2021"]
[Black "FREDERICKtheMATE"]
[Result "1/2-1/2"]
[WhiteElo "2452"]
[BlackElo "2590"]
[TimeControl "180+1"]
[EndTime "9:44:31 PDT"]
[Termination "Game drawn by stalemate"]

1. Nf3 {[%clk 0:02:56.9]} 1... Nf6 {[%clk 0:03:00.1]} 2. c4 {[%clk 0:02:54.5]}
2... g6 {[%clk 0:03:00.5]} 3. g3 {[%clk 0:02:55.4]} 3... Bg7 {[%clk 0:03:01]} 4.
Bg2 {[%clk 0:02:56.3]} 4... O-O {[%clk 0:03:01.5]} 5. O-O {[%clk 0:02:57.2]}
5... c6 {[%clk 0:03:02.1]} 6. Nc3 {[%clk 0:02:57.8]} 6... d5 {[%clk 0:03:03]} 7.
cxd5 {[%clk 0:02:54.6]} 7... cxd5 {[%clk 0:03:03.9]} 8. d4 {[%clk 0:02:55.5]}
8... Nc6 {[%clk 0:03:03.9]} 9. Ne5 {[%clk 0:02:53.7]} 9... Bf5 {[%clk
0:03:02.1]} 10. Nxc6 {[%clk 0:02:49.7]} 10... bxc6 {[%clk 0:03:01.6]} 11. b3
{[%clk 0:02:50.3]} 11... Qa5 {[%clk 0:02:58.1]} 12. Na4 {[%clk 0:02:49.4]} 12...
Nd7 {[%clk 0:02:57.1]} 13. Ba3 {[%clk 0:02:46.2]} 13... Rfe8 {[%clk 0:02:54.4]}
14. Rc1 {[%clk 0:02:46]} 14... Rac8 {[%clk 0:02:54]} 15. Re1 {[%clk 0:02:40.6]}
15... e5 {[%clk 0:02:53.2]} 16. dxe5 {[%clk 0:02:26.5]} 16... Rxe5 {[%clk
0:02:49]} 17. Bb2 {[%clk 0:02:25]} 17... Ree8 {[%clk 0:02:46]} 18. Bxg7 {[%clk
0:02:22.5]} 18... Kxg7 {[%clk 0:02:46.9]} 19. Qd4+ {[%clk 0:02:14.3]} 19... Kg8
{[%clk 0:02:46]} 20. e4 {[%clk 0:02:06.7]} 20... dxe4 {[%clk 0:02:43.8]} 21.
Bxe4 {[%clk 0:02:06.5]} 21... Nb6 {[%clk 0:02:38.7]} 22. Nc5 {[%clk 0:01:40.5]}
22... Rcd8 {[%clk 0:02:32.6]} 23. Qa1 {[%clk 0:01:13.2]} 23... Nd5 {[%clk
0:02:11.4]} 24. a3 {[%clk 0:00:47.2]} 24... Bxe4 {[%clk 0:02:06.7]} 25. Nxe4
{[%clk 0:00:42.5]} 25... Qb6 {[%clk 0:02:06.9]} 26. Rcd1 {[%clk 0:00:28.2]}
26... f5 {[%clk 0:01:44.5]} 27. Nf6+ {[%clk 0:00:20.9]} 27... Nxf6 {[%clk
0:01:43.3]} 28. Qxf6 {[%clk 0:00:19.5]} 28... c5 {[%clk 0:01:29.8]} 29. Qc3
{[%clk 0:00:15.1]} 29... Re4 {[%clk 0:01:16.8]} 30. Rxe4 {[%clk 0:00:14.2]}
30... fxe4 {[%clk 0:01:17.7]} 31. Qc4+ {[%clk 0:00:13.8]} 31... Kf8 {[%clk
0:01:10.3]} 32. Rxd8+ {[%clk 0:00:13.2]} 32... Qxd8 {[%clk 0:01:09.6]} 33. Qxc5+
{[%clk 0:00:12.8]} 33... Kg8 {[%clk 0:01:04.6]} 34. Qc4+ {[%clk 0:00:12.5]}
34... Kg7 {[%clk 0:01:01.6]} 35. Qxe4 {[%clk 0:00:11.4]} 35... Qd1+ {[%clk
0:01:01.2]} 36. Kg2 {[%clk 0:00:12]} 36... Qxb3 {[%clk 0:01:01.5]} 37. Qe7+
{[%clk 0:00:12.4]} 37... Kh6 {[%clk 0:01:00.1]} 38. Qxa7 {[%clk 0:00:12.2]}
38... Qd5+ {[%clk 0:01:00.3]} 39. Kg1 {[%clk 0:00:08.5]} 39... Qd1+ {[%clk
0:00:59.4]} 40. Kg2 {[%clk 0:00:09]} 40... Qd5+ {[%clk 0:00:59.3]} 41. f3 {[%clk
0:00:08.9]} 41... Qa2+ {[%clk 0:00:59.5]} 42. Kh3 {[%clk 0:00:08.6]} 42... Qe2
{[%clk 0:00:53.1]} 43. Qd4 {[%clk 0:00:05]} 43... Qf1+ {[%clk 0:00:45.9]} 44.
Kg4 {[%clk 0:00:05.1]} 44... Qa6 {[%clk 0:00:43.9]} 45. Qf4+ {[%clk 0:00:05.2]}
45... Kg7 {[%clk 0:00:43.5]} 46. Qd4+ {[%clk 0:00:05.8]} 46... Kh6 {[%clk
0:00:42]} 47. Qe3+ {[%clk 0:00:05.9]} 47... Kg7 {[%clk 0:00:42]} 48. Kh3 {[%clk
0:00:06.5]} 48... Qc8+ {[%clk 0:00:39.6]} 49. g4 {[%clk 0:00:07]} 49... Qa6
{[%clk 0:00:36.2]} 50. Kg3 {[%clk 0:00:07]} 50... Qd6+ {[%clk 0:00:35.4]} 51. f4
{[%clk 0:00:07.1]} 51... Qa6 {[%clk 0:00:34.1]} 52. Qd4+ {[%clk 0:00:05.6]}
52... Kf7 {[%clk 0:00:33]} 53. Qd5+ {[%clk 0:00:05.4]} 53... Kg7 {[%clk
0:00:32.3]} 54. Qe5+ {[%clk 0:00:05.8]} 54... Kf7 {[%clk 0:00:32.3]} 55. Qc3
{[%clk 0:00:05.8]} 55... Qf1 {[%clk 0:00:31.5]} 56. Qf3 {[%clk 0:00:06.3]} 56...
Qg1+ {[%clk 0:00:31.4]} 57. Kh3 {[%clk 0:00:06.6]} 57... Qa7 {[%clk 0:00:28.6]}
58. Qb3+ {[%clk 0:00:05.6]} 58... Kf6 {[%clk 0:00:27.8]} 59. Qc3+ {[%clk
0:00:05.9]} 59... Kf7 {[%clk 0:00:27.9]} 60. Kg3 {[%clk 0:00:06.1]} 60... Qg1+
{[%clk 0:00:27.4]} 61. Kh3 {[%clk 0:00:06.7]} 61... Qf1+ {[%clk 0:00:27.2]} 62.
Kh4 {[%clk 0:00:06.4]} 62... Qf2+ {[%clk 0:00:25.9]} 63. Qg3 {[%clk 0:00:06.4]}
63... Qb2 {[%clk 0:00:24.4]} 64. g5 {[%clk 0:00:06.4]} 64... Qa2 {[%clk
0:00:19.9]} 65. h3 {[%clk 0:00:05.5]} 65... Qe6 {[%clk 0:00:19.4]} 66. Qf3
{[%clk 0:00:04.5]} 66... Qa6 {[%clk 0:00:19.1]} 67. Qe3 {[%clk 0:00:03.9]} 67...
Qf1 {[%clk 0:00:17.8]} 68. Kg3 {[%clk 0:00:04.5]} 68... Qa6 {[%clk 0:00:17.1]}
69. h4 {[%clk 0:00:05.1]} 69... Qa4 {[%clk 0:00:16.6]} 70. Qf3 {[%clk
0:00:04.7]} 70... Qa6 {[%clk 0:00:16.7]} 71. h5 {[%clk 0:00:05.1]} 71... gxh5
{[%clk 0:00:16.5]} 72. Qxh5+ {[%clk 0:00:06]} 72... Kg7 {[%clk 0:00:17.1]} 73.
Qf3 {[%clk 0:00:06]} 73... Qa4 {[%clk 0:00:16.6]} 74. f5 {[%clk 0:00:06.4]}
74... Qa6 {[%clk 0:00:15.2]} 75. f6+ {[%clk 0:00:06.2]} 75... Kf7 {[%clk
0:00:14.8]} 76. Qd5+ {[%clk 0:00:06]} 76... Kg6 {[%clk 0:00:15]} 77. Qe4+ {[%clk
0:00:06]} 77... Kxg5 {[%clk 0:00:15]} 78. Qf4+ {[%clk 0:00:05.7]} 78... Kg6
{[%clk 0:00:15]} 79. f7 {[%clk 0:00:06.3]} 79... Qxa3+ {[%clk 0:00:15.4]} 80.
Kh4 {[%clk 0:00:06.2]} 80... Qf8 {[%clk 0:00:16.3]} 81. Qg5+ {[%clk 0:00:05.9]}
81... Kxf7 {[%clk 0:00:16.5]} 82. Qf5+ {[%clk 0:00:05.7]} 82... Kg8 {[%clk
0:00:16.8]} 83. Qxf8+ {[%clk 0:00:05.9]} 83... Kxf8 {[%clk 0:00:17.7]} 84. Kg5
{[%clk 0:00:06.8]} 84... Kg7 {[%clk 0:00:18.1]} 85. Kh5 {[%clk 0:00:07.5]} 85...
h6 {[%clk 0:00:19]} 86. Kg4 {[%clk 0:00:07.6]} 86... Kh7 {[%clk 0:00:19.9]} 87.
Kh4 {[%clk 0:00:08.1]} 87... Kg6 {[%clk 0:00:20.8]} 88. Kg4 {[%clk 0:00:08.6]}
88... h5+ {[%clk 0:00:21.7]} 89. Kh4 {[%clk 0:00:08.9]} 89... Kh6 {[%clk
0:00:22.6]} 90. Kh3 {[%clk 0:00:08.2]} 90... Kg5 {[%clk 0:00:23.5]} 91. Kg3
{[%clk 0:00:08.9]} 91... h4+ {[%clk 0:00:24.4]} 92. Kh3 {[%clk 0:00:08.7]} 92...
Kh5 {[%clk 0:00:25.3]} 93. Kh2 {[%clk 0:00:08.1]} 93... Kg4 {[%clk 0:00:26.2]}
94. Kg2 {[%clk 0:00:08.7]} 94... h3+ {[%clk 0:00:27.1]} 95. Kh2 {[%clk
0:00:07.9]} 95... Kh4 {[%clk 0:00:28]} 96. Kh1 {[%clk 0:00:05.7]} 96... Kg3
{[%clk 0:00:28.9]} 97. Kg1 {[%clk 0:00:06.3]} 97... h2+ {[%clk 0:00:29.7]} 98.
Kh1 {[%clk 0:00:06.9]} 98... Kh3 {[%clk 0:00:30.6]} 1/2-1/2